bitfinex/quotes_ETHUSD_20250722
["timestamp","ask_amount","ask_price","bid_price","bid_amount"]
[1753201086974,2.66887808,3746.9,3746.2,1.5138]
[1753201087276,2.66887808,3746.9,3746.2,4.18314861]
[1753201087688,15.4959,3747.1,3746.2,4.18314861]
[1753201087689,2.66881775,3747.0,3746.2,4.18312668]
[1753201087916,2.66898955,3746.8,3746.2,1.5138]
[1753201088228,15.4959,3747.1,3746.3,2.66924832]
[1753201088372,2.66880736,3747.0,3746.2,4.18315772]
[1753201088795,0.026701,3747.1,3746.3,2.66925952]
[1753201089120,2.6686091,3747.3,3746.5,2.66915416]
[1753201089317,5.3746,3747.5,3746.6,0.4628]
[1753201089470,2.66858805,3747.3,3746.6,0.4628]
[1753201089700,2.66866872,3747.2,3746.6,0.4628]
[1753201089904,2.66866872,3747.2,3746.2,3.72036002]
[1753201089905,0.1328,3746.6,3746.3,4.377]
[1753201090138,2.6688449,3747.0,3746.3,4.377]
[1753201090340,2.66895702,3746.8,3746.3,4.377]
[1753201090541,2.66889153,3746.9,3746.3,4.377]
[1753201090808,2.69544498,3747.1,3746.3,4.8398]
[1753201091024,2.66889084,3746.9,3746.3,4.8398]
[1753201091251,0.1328,3746.3,3746.1,0.001]
[1753201091658,2.69565725,3746.8,3746.1,0.001]
[1753201091659,2.69565077,3746.8,3746.1,0.001]
[1753201091806,2.6688564,3747.0,3746.2,0.4628]
[1753201092007,2.6688017,3747.0,3746.2,0.4628]
[1753201092306,4.372,3747.4,3746.4,2.66918062]
[1753201092529,2.66870772,3747.2,3746.5,0.4628]
[1753201093048,0.20361248,3747.4,3746.5,0.4628]
[1753201093345,0.9966,3747.5,3746.6,0.9676]
[1753201093658,2.66859424,3747.3,3746.6,0.9676]
[1753201093856,2.66854433,3747.4,3746.6,0.9676]
[1753201094008,0.9966,3747.5,3746.6,0.9676]
[1753201094210,0.9966,3747.5,3746.6,3.63666592]
[1753201094439,2.66856055,3747.4,3746.7,0.4628]
[1753201095042,2.66873042,3747.2,3746.7,0.4628]
[1753201095236,2.86702899,3747.4,3746.7,0.4628]
[1753201095542,0.1328,3746.7,3746.6,3.63668663]
[1753201095915,0.19827215,3747.7,3746.6,1.59817758]
[1753201096246,0.1328,3747.0,3746.9,2.66887293]
[1753201096418,0.1328,3747.0,3746.9,7.49567293]
[1753201096616,0.1328,3747.0,3746.9,8.55707293]
[1753201097133,0.1328,3747.0,3746.9,4.19307293]
[1753201097341,0.1328,3747.0,3746.9,5.7423324]
[1753201097656,0.1328,3747.0,3746.9,10.1033324]
[1753201098150,0.002,3748.1,3747.0,2.6687602]
[1753201098463,0.1328,3747.3,3747.2,2.66865926]
[1753201098649,0.1328,3747.3,3747.2,3.13285926]
[1753201099152,0.1328,3747.3,3747.1,2.6687181]
[1753201099357,0.1328,3747.3,3747.2,0.4642]
[1753201099845,0.1328,3747.3,3747.2,4.8252]
[1753201100539,0.1328,3747.3,3747.2,4.361]
[1753201100747,0.1328,3747.3,3746.9,1.8614]
[1753201100908,2.66865165,3747.3,3746.9,5.161]
[1753201101235,5.66832912,3747.7,3746.9,5.161]
[1753201101438,5.66832912,3747.7,3746.9,5.6252]
[1753201101439,3.0,3747.7,3746.9,5.6252]
[1753201101659,0.19957632,3748.1,3747.0,2.66878844]
[1753201101660,3.0,3748.0,3747.0,2.66878844]
[1753201101827,2.69490637,3747.9,3747.0,7.02978844]
[1753201102027,2.66813729,3748.0,3747.1,2.66871207]
[1753201102278,2.66813729,3748.0,3747.0,4.361]
[1753201102279,3.002,3748.1,3747.5,2.6683815]
[1753201102425,0.002,3748.1,3747.5,4.361]
[1753201102778,0.002,3748.1,3747.6,3.13257442]
[1753201102971,0.002,3748.1,3747.7,2.66830322]
[1753201103131,0.002,3748.1,3748.0,3.71108964]
[1753201103321,0.002,3748.1,3748.0,5.404]
[1753201103526,0.1328,3748.0,3747.7,3.13248705]
[1753201103725,0.002,3748.1,3747.8,4.8252]
[1753201104151,0.002,3748.1,3747.9,0.4642]
[1753201104367,0.1348,3748.1,3748.0,2.69477053]
[1753201104669,0.1348,3748.1,3748.0,2.66808964]
[1753201104967,0.1348,3748.1,3748.0,3.13228964]
[1753201105575,0.1348,3748.1,3748.0,0.4642]
[1753201106251,0.1348,3748.1,3748.0,4.8242]
[1753201106660,0.1348,3748.1,3748.0,4.36]
[1753201107273,0.1348,3748.1,3748.0,0.4642]
[1753201107475,0.1348,3748.1,3748.0,7.49228964]
[1753201107644,0.1348,3748.1,3748.0,4.8242]
[1753201109036,0.1348,3748.1,3747.6,1.043]
[1753201109245,2.67007166,3748.1,3747.7,0.4642]
[1753201109446,0.026701,3748.0,3747.7,0.4642]
[1753201109647,0.002,3748.1,3747.8,4.36]
[1753201109884,0.1328,3747.9,3747.8,4.8242]
[1753201110650,0.1328,3747.9,3747.8,4.36]
[1753201111005,0.1328,3747.9,3747.4,0.4642]
[1753201111138,0.002,3748.1,3747.5,4.359]
[1753201111332,0.002,3748.1,3747.1,0.9689]
[1753201111333,0.1328,3747.5,3747.1,1.4331]
[1753201111566,0.1328,3747.5,3747.2,4.359]
[1753201111895,0.1328,3747.5,3747.2,0.4642]
[1753201112065,0.026701,3747.9,3747.3,4.359]
[1753201112387,0.026701,3747.9,3747.4,4.359]
[1753201112750,0.026701,3747.9,3747.4,4.8232]
[1753201113064,2.66817005,3747.9,3747.5,4.359]
[1753201113376,0.026701,3747.8,3747.5,4.359]
[1753201113871,0.002,3748.1,3747.5,4.359]
[1753201114074,2.6680931,3748.0,3747.5,4.359]
[1753201114376,0.028701,3748.1,3747.1,4.10181728]
[1753201114377,0.1328,3747.5,3747.1,4.10181239]
[1753201114545,0.028701,3748.1,3747.2,4.8232]
[1753201114762,2.66817466,3747.9,3747.2,4.8232]
[1753201115079,0.026701,3747.8,3747.2,4.8232]
[1753201115432,0.002,3748.1,3747.2,4.8232]
[1753201115433,2.66810291,3748.0,3747.3,4.359]
[1753201115652,0.002,3748.1,3747.4,0.4642]
[1753201116136,2.67003669,3748.1,3747.4,0.4642]
[1753201116332,0.026701,3748.0,3747.4,0.4642]
[1753201116986,0.002,3748.1,3747.4,0.4642]
[1753201117546,0.002,3748.1,3747.4,3.13270428]
[1753201118054,0.002,3748.1,3747.4,0.4642]
[1753201118495,0.1328,3747.4,3747.1,0.9689]
[1753201118695,0.026701,3747.6,3747.0,0.4642]
[1753201118896,2.69508343,3747.6,3747.2,4.359]
[1753201119504,2.66852293,3747.4,3747.2,4.359]
[1753201119819,0.026701,3747.3,3747.0,0.4642]
[1753201120005,0.026701,3747.3,3747.1,4.358]
[1753201120795,0.026701,3747.7,3747.1,4.358]
[1753201120996,2.69503315,3747.7,3747.1,4.358]
[1753201121205,0.1328,3747.1,3747.0,0.4642]
[1753201121358,0.1328,3747.1,3747.0,4.8222]
[1753201122307,0.1328,3747.1,3746.9,0.8]
[1753201122458,0.026701,3747.0,3746.9,0.8]
[1753201122654,0.1328,3746.9,3746.6,4.359]
[1753201122865,14.5,3747.6,3746.7,0.4642]
[1753201123070,1.042,3748.2,3746.9,3.65917293]
[1753201123311,0.1328,3747.2,3747.1,2.66873048]
[1753201123650,0.9917,3748.7,3747.1,0.4908873]
[1753201123793,0.002,3748.9,3748.0,3.63048964]
[1753201123991,0.002,3748.9,3748.0,8.01517053]
[1753201124302,0.1328,3748.2,3748.0,8.45268964]
[1753201125818,0.1328,3748.4,3748.0,8.45268964]
[1753201127881,0.002,3748.9,3748.0,8.58448964]
[1753201128064,0.1328,3748.7,3748.0,9.7097562]
[1753201128259,0.1328,3748.7,3748.0,5.3527562]
[1753201128459,0.1328,3748.7,3748.0,9.73643709]
[1753201128661,0.1328,3748.7,3748.0,9.7097562]
[1753201129859,0.1328,3748.7,3748.0,9.7087562]
[1753201130365,0.1328,3748.7,3748.0,10.5087562]
[1753201131499,0.1328,3748.7,3748.0,10.75296843]
[1753201132590,0.1328,3748.7,3748.0,9.62770187]
[1753201133398,0.1328,3748.7,3748.0,2.60361223]
[1753201133707,0.1348,3748.1,3748.0,1.04421223]
[1753201134124,0.1348,3748.1,3748.0,5.39921223]
[1753201134403,0.1348,3748.1,3748.0,8.06730187]
[1753201134606,0.1348,3748.1,3748.0,8.53900187]
[1753201134775,0.1348,3748.1,3748.0,5.39921223]
[1753201134971,0.1348,3748.1,3748.0,8.06730187]
[1753201135803,0.1348,3748.1,3748.0,5.39921223]
[1753201136006,0.1348,3748.1,3748.0,8.06730187]
[1753201136209,0.1348,3748.1,3748.0,8.53900187]
[1753201136504,0.1348,3748.1,3748.0,5.39921223]
[1753201136804,0.1348,3748.1,3748.0,8.53900187]
[1753201137208,0.1348,3748.1,3748.0,8.5389453]
[1753201137396,0.002,3748.1,3748.0,10.75054412]
[1753201137599,0.002,3748.1,3748.0,11.79726224]
[1753201137980,0.002,3748.1,3748.0,11.93004758]
[1753201138285,1e-08,3748.1,3748.0,11.93004758]
[1753201138820,1e-08,3748.1,3748.0,7.57504758]
[1753201139037,1e-08,3748.1,3748.0,5.36344876]
[1753201139184,1e-08,3748.1,3748.0,9.71744876]
[1753201139539,1e-08,3748.1,3748.0,9.58464876]
[1753201139819,1e-08,3748.1,3748.0,5.23064876]
[1753201140292,1e-08,3748.1,3748.0,5.39705912]
[1753201140493,1e-08,3748.1,3748.0,1.04405912]
[1753201140879,1e-08,3748.1,3748.0,5.39705912]
[1753201141308,1e-08,3748.1,3748.0,1.04405912]
[1753201141485,2.89291947,3748.1,3748.0,1.04405912]
[1753201141685,2.86621847,3748.1,3748.0,1.04405912]
[1753201142315,2.89291947,3748.1,3748.0,1.04405912]
[1753201142528,6.88011947,3748.1,3748.0,0.24405912]
[1753201142702,7.40341847,3748.1,3748.0,0.24405912]
[1753201142885,7.40341847,3748.1,3748.0,1e-08]
[1753201143087,7.40341847,3748.1,3745.9,6.8727]
[1753201143088,4.5948,3748.0,3745.9,6.8727]
[1753201143288,1.0448,3746.8,3746.7,4.353]
[1753201143519,1.0448,3746.8,3745.9,9.54228066]
[1753201143716,0.1328,3746.7,3746.2,2.66935013]
[1753201143904,0.1328,3746.7,3746.3,2.66925432]
[1753201144103,0.1328,3746.7,3746.6,4.353]
[1753201145085,0.1328,3746.7,3746.6,9.03625663]
[1753201145290,0.1328,3746.7,3746.6,6.36717]
[1753201145727,0.1328,3746.7,3746.6,9.03625663]
[1753201146631,0.1328,3746.7,3746.6,0.48347]
[1753201146848,0.1328,3746.7,3746.6,7.02208663]
[1753201147006,0.1328,3746.7,3746.6,7.49378663]
[1753201147618,0.9873,3747.7,3747.2,2.6686085]
[1753201147824,0.9873,3747.7,3747.3,4.352]
[1753201148017,1.0173,3748.0,3747.3,4.352]
[1753201148240,1.0173,3748.0,3747.4,0.4717]
[1753201148442,1.0173,3748.0,3747.3,4.352]
[1753201148828,0.026701,3747.9,3747.6,0.8]
[1753201149146,2.86647864,3747.8,3747.7,4.352]
[1753201149318,0.1982,3747.8,3747.7,4.352]
[1753201149525,1.22039678,3748.0,3746.6,0.4727]
[1753201149526,1.0025,3747.9,3746.6,0.001]
[1753201149861,2.66876284,3747.1,3746.6,0.001]
[1753201150152,2.69528905,3747.3,3746.7,4.352]
[1753201150348,3.68038938,3746.9,3746.8,4.352]
[1753201150558,1.602,3745.1,3742.3,0.001]
[1753201150790,0.55,3743.1,3742.3,0.001]
[1753201150911,14.45881848,3742.7,3742.3,0.001]
[1753201151249,23.62639178,3742.7,3742.3,0.001]
[1753201151433,24.0253168,3742.7,3742.3,0.001]
[1753201151633,21.8826114,3742.7,3742.3,0.001]
[1753201151836,22.9011114,3742.7,3742.3,0.001]
[1753201153048,11.99229292,3742.7,3742.3,0.001]
[1753201153855,11.99229292,3742.7,3742.6,1e-08]
[1753201154058,7.24666771,3742.0,3741.9,1e-08]
[1753201154227,24.42011248,3742.0,3741.9,1e-08]
[1753201154428,24.61731248,3742.0,3741.9,1e-08]
[1753201155362,16.42686771,3742.0,3741.9,1e-08]
[1753201155528,11.79686771,3742.0,3741.9,1e-08]
[1753201155711,11.04966771,3742.0,3741.9,1e-08]
[1753201155912,11.59966771,3742.0,3741.9,1e-08]
[1753201156234,11.79686771,3742.0,3741.9,1e-08]
[1753201156970,6.22243913,3741.9,3739.3,1.205]
[1753201157181,1.4081,3740.7,3739.3,0.001]
[1753201157329,3.55,3740.5,3739.3,0.001]
[1753201157528,4.379701,3740.4,3739.3,0.001]
[1753201157762,4.353,3740.3,3739.3,0.001]
[1753201157969,0.026701,3740.2,3739.3,0.001]
[1753201158265,4.353,3740.1,3739.4,0.4324]
[1753201158570,4.353,3740.6,3739.6,2.67406006]
[1753201158787,4.353,3740.6,3739.8,1.0211]
[1753201158992,0.1336,3740.0,3739.9,3.10626828]
[1753201159165,0.1336,3740.0,3739.9,3.78639638]
[1753201159991,1.0003,3741.3,3739.9,1.13926678]
[1753201160192,0.026701,3741.2,3739.9,1.1125281]
[1753201160394,0.1336,3740.1,3740.0,3.13293475]
[1753201160788,0.1336,3740.1,3740.0,3.10619679]
[1753201160987,0.026701,3741.9,3740.5,2.67341174]
[1753201161152,0.990301,3742.1,3740.6,0.45913367]
[1753201161380,0.9636,3742.7,3740.7,0.9787]
[1753201161574,0.9636,3742.7,3740.8,0.60291561]
[1753201161879,0.990301,3742.7,3740.9,5.0534]
[1753201162074,3.0,3742.5,3741.5,2.67268049]
[1753201162279,3.6354837,3742.7,3741.6,2.6726437]
[1753201162475,0.990301,3742.7,3741.5,0.4324]
[1753201162710,0.990301,3742.7,3741.6,2.67265341]
[1753201163085,3.990301,3742.7,3741.6,2.67259185]
[1753201163289,0.990301,3742.7,3741.5,0.4324]
[1753201163472,0.026701,3742.6,3741.6,0.31052493]
[1753201163676,0.026701,3742.6,3741.5,0.4324]
[1753201164317,0.026701,3742.6,3741.6,2.67259969]
[1753201164678,0.576701,3742.6,3741.5,0.4324]
[1753201164879,2.67217032,3742.3,3741.1,7.28600547]
[1753201165077,0.9636,3742.7,3741.1,7.28600547]
[1753201165078,0.026701,3742.2,3741.2,2.67293916]
[1753201165301,0.9636,3742.7,3741.6,2.67259761]
[1753201165302,0.576701,3742.6,3741.6,2.67259761]
[1753201165518,0.026701,3742.6,3741.7,0.4324]
[1753201165690,3.0,3742.5,3741.7,0.4324]
[1753201165895,0.026701,3742.4,3741.4,2.67278392]
[1753201166119,0.026701,3742.4,3741.5,2.67270439]
[1753201166120,0.576701,3742.4,3741.5,2.67270439]
[1753201166333,0.576701,3742.4,3741.7,2.6725725]
[1753201166495,0.026701,3742.4,3741.7,0.4324]
[1753201166817,3.026701,3742.6,3741.7,3.10492353]
[1753201166996,0.026701,3742.6,3741.7,0.4324]
[1753201167198,0.026701,3742.6,3741.9,2.67240788]
[1753201167381,3.0,3742.5,3741.7,0.4324]
[1753201167580,2.67201473,3742.5,3741.5,2.67271479]
[1753201167786,3.026701,3742.4,3741.5,2.67271479]
[1753201167999,0.026701,3742.4,3741.6,2.67263942]
[1753201168177,0.026701,3742.4,3741.5,2.67270018]
[1753201168383,0.026701,3742.4,3741.3,3.10525996]
[1753201168578,0.026701,3742.4,3740.7,3.65197218]
[1753201168579,1.0312,3741.8,3740.9,0.4324]
[1753201168835,0.026701,3741.7,3740.9,0.4324]
[1753201169139,2.67265341,3741.6,3740.9,0.4324]
[1753201169308,2.67280525,3741.4,3740.5,0.4324]
[1753201169508,2.69957515,3741.3,3740.5,0.4324]
[1753201169734,2.67298943,3741.2,3740.4,6.41]
[1753201170008,3.0,3741.3,3740.4,9.08350845]
[1753201170205,3.0,3741.3,3740.5,2.67343894]
[1753201170432,2.67288002,3741.3,3740.4,6.41]
[1753201170736,3.55,3741.3,3740.2,1.0553]
[1753201170901,0.1336,3740.3,3740.2,1.0553]
[1753201171103,0.1336,3740.3,3740.2,0.4324]
[1753201171639,0.1336,3740.3,3740.2,3.60605381]
[1753201172422,0.1336,3740.3,3740.2,0.5]
[1753201172643,0.1336,3740.3,3740.2,0.4324]
[1753201172960,0.1336,3740.3,3740.2,3.10605381]
[1753201173707,0.1336,3740.3,3740.2,4.73101555]
[1753201174019,0.1336,3740.3,3740.2,4.70427902]
[1753201174219,0.1336,3740.3,3740.2,4.73101555]
[1753201174947,0.1336,3740.3,3740.2,4.70427902]
[1753201175307,0.1336,3740.3,3740.2,9.27827902]
[1753201176742,0.1336,3740.5,3740.2,9.27827902]
[1753201176915,1.0517,3742.2,3740.2,9.27827902]
[1753201176916,0.1336,3740.9,3740.8,2.67322497]
[1753201177119,3.72397693,3742.2,3741.0,2.67301261]
[1753201177309,0.1336,3741.2,3741.1,2.67301061]
[1753201177639,0.1336,3741.2,3741.1,3.10541061]
[1753201177841,0.1336,3741.2,3741.1,0.75534163]
[1753201178047,0.1336,3741.2,3741.1,4.56]
[1753201178206,0.1336,3741.2,3741.1,7.66541061]
[1753201178408,0.1336,3741.2,3741.1,8.67761061]
[1753201180510,0.24860096,3741.8,3741.7,2.67258198]
[1753201180740,0.002,3741.9,3741.8,2.67251055]
[1753201181049,0.002,3741.9,3741.8,3.39889385]
[1753201181227,0.002,3741.9,3741.8,3.37216875]
[1753201181431,0.002,3741.9,3741.8,3.39889385]
[1753201181754,0.002,3741.9,3741.8,7.94789385]
[1753201181910,0.002,3741.9,3741.8,7.92116875]
[1753201182425,0.002,3741.9,3741.8,8.95966875]
[1753201182622,0.002,3741.9,3741.8,9.09326875]
[1753201182823,1e-08,3741.9,3741.8,8.04426875]
[1753201183023,0.1328,3742.7,3742.6,3.65463929]
[1753201183221,0.1328,3742.7,3742.6,8.56310322]
[1753201183446,0.1328,3742.7,3742.6,4.45250322]
[1753201184015,0.1328,3742.7,3742.6,8.99250322]
[1753201184313,0.1328,3742.7,3742.6,8.62703929]
[1753201184727,1.0654,3743.7,3743.1,2.67152485]
[1753201184924,1.0654,3743.7,3743.2,4.539]
[1753201186149,0.1328,3743.2,3742.6,0.9827]
[1753201186352,1.0654,3743.7,3742.7,4.531]
[1753201186559,1.0654,3743.7,3742.8,2.67179341]
[1753201186857,1.0654,3743.7,3743.0,2.6716525]
[1753201187017,1.0654,3743.7,3743.1,4.528]
[1753201187219,1.0654,3743.7,3743.2,2.67145419]
[1753201187429,3.0,3744.1,3743.2,2.67145419]
[1753201187430,0.9671,3744.1,3743.3,4.527]
[1753201187624,0.20197435,3744.4,3743.7,2.67113111]
[1753201187918,0.9671,3744.6,3743.8,4.528]
[1753201188118,0.9671,3744.6,3743.9,2.67094469]
[1753201188423,2.67058352,3744.5,3743.9,0.10044434]
[1753201188619,3.63767336,3744.6,3744.0,0.10044166]
[1753201188819,3.0,3744.5,3744.0,0.10044166]
[1753201189020,0.026701,3744.4,3744.0,0.10044166]
[1753201189341,0.9671,3744.6,3744.0,0.10044166]
[1753201189545,0.9671,3744.6,3744.0,0.55104166]
[1753201189751,0.9671,3744.6,3744.1,4.523]
[1753201189956,0.9671,3744.6,3744.1,7.74489917]
[1753201190249,6.79263811,3745.0,3743.5,1.0148]
[1753201190250,1.028,3745.0,3744.2,0.10043629]
[1753201190419,3.0,3744.6,3744.2,0.10043629]
[1753201190622,2.67058352,3744.5,3744.2,0.10043629]
[1753201190822,6.69872617,3744.3,3744.2,0.10043629]
[1753201191057,7.24872617,3744.3,3744.2,0.10043629]
[1753201192470,7.44592617,3744.3,3744.2,0.10043629]
[1753201193350,7.24872617,3744.3,3744.2,0.10043629]
[1753201196645,3.0,3744.3,3744.2,0.10043629]
[1753201196843,21.42122617,3744.3,3744.2,0.10043629]
[1753201197073,21.97122617,3744.3,3744.2,0.10043629]
[1753201197271,21.97122617,3744.3,3744.2,0.00043629]
[1753201197430,26.37322617,3744.3,3744.2,0.00043629]
[1753201197835,29.17922617,3744.3,3744.2,0.00043629]
[1753201198279,26.37322617,3744.3,3744.2,0.00043629]
[1753201199471,26.37322617,3744.3,3741.9,0.001]
[1753201199472,1.4157,3742.8,3741.9,0.001]
[1753201199782,7.08806771,3742.0,3741.9,0.001]
[1753201199956,11.61806771,3742.0,3741.9,0.001]
[1753201200156,26.21526771,3742.0,3741.9,0.001]
[1753201200590,21.68526771,3742.0,3741.9,0.001]
[1753201200795,26.21126771,3742.0,3741.9,0.001]
[1753201201489,21.58806771,3742.0,3741.9,0.001]
[1753201201691,11.61206771,3742.0,3741.9,0.001]
[1753201201991,11.70826771,3742.0,3741.9,0.001]
[1753201202177,7.28870373,3742.0,3741.9,0.001]
[1753201202507,11.81070373,3742.0,3741.9,0.001]
[1753201202967,11.90790373,3742.0,3741.9,0.001]
[1753201203172,26.40790373,3742.0,3741.9,0.001]
[1753201203809,21.78870373,3742.0,3741.9,0.001]
[1753201204100,11.80470373,3742.0,3741.9,0.001]
[1753201204486,7.28870373,3742.0,3741.9,0.001]
[1753201204674,11.80170373,3742.0,3741.9,0.001]
[1753201205790,11.79670373,3742.0,3741.9,0.001]
[1753201205993,11.79770373,3742.0,3741.9,0.001]
[1753201206299,7.28870373,3742.0,3741.9,0.001]
[1753201206474,11.79670373,3742.0,3741.9,0.001]
[1753201208617,11.89390373,3742.0,3741.9,0.001]
[1753201208996,7.38590373,3742.0,3741.9,0.001]
[1753201209190,26.28570373,3742.0,3741.9,0.001]
[1753201209390,26.28470373,3742.0,3741.9,0.001]
[1753201210795,26.28070373,3742.0,3741.9,0.001]
[1753201212290,11.78070373,3742.0,3741.9,0.001]
[1753201212489,11.77370373,3742.0,3741.9,0.001]
[1753201213326,11.87090373,3742.0,3741.9,0.001]
[1753201213625,11.77370373,3742.0,3741.9,0.001]
[1753201213828,11.87090373,3742.0,3741.9,0.001]
[1753201214052,11.77370373,3742.0,3741.9,0.001]
[1753201214354,11.76870373,3742.0,3741.9,0.001]
[1753201215764,7.28870373,3742.0,3741.9,0.001]
[1753201215938,11.76370373,3742.0,3741.9,0.001]
[1753201216121,7.28870373,3742.0,3741.9,0.001]
[1753201216454,26.26170373,3742.0,3741.9,0.001]
[1753201216664,26.25970373,3742.0,3741.9,0.001]
[1753201217532,11.75970373,3742.0,3741.9,0.001]
[1753201219821,11.75970373,3742.0,3741.9,1e-08]
[1753201219822,11.85690373,3742.0,3741.9,1e-08]
[1753201220030,11.85690373,3742.0,3740.4,0.4737]
[1753201220031,6.22343937,3740.5,3740.4,0.001]
[1753201220324,10.68543937,3740.5,3740.4,0.001]
[1753201220526,11.67453937,3740.5,3740.4,1e-08]
[1753201220925,7.21253937,3740.5,3740.4,1e-08]
[1753201221156,10.68543937,3740.5,3740.4,1e-08]
[1753201221356,3.55,3740.5,3740.4,1e-08]
[1753201221557,10.68543937,3740.5,3740.4,0.47270001]
[1753201221768,10.68543937,3740.5,3740.4,1e-08]
[1753201222862,10.68443937,3740.5,3740.4,1e-08]
[1753201223955,6.22343937,3740.5,3740.4,1e-08]
[1753201224298,10.68543937,3740.5,3740.4,1e-08]
[1753201224954,6.22343937,3740.5,3740.4,1e-08]
[1753201225369,10.68043937,3740.5,3740.4,1e-08]
[1753201226956,11.83283937,3740.5,3740.4,1e-08]
[1753201227162,3.22386828,3739.9,3739.8,1e-08]
[1753201227361,10.67486828,3739.9,3739.8,1e-08]
[1753201227697,25.17386828,3739.9,3739.8,1e-08]
[1753201228867,25.17286828,3739.9,3739.8,1e-08]
[1753201229768,25.16986828,3739.9,3739.8,1e-08]
[1753201230475,26.33726828,3739.9,3739.8,1e-08]
[1753201230677,11.83726828,3739.9,3739.8,1e-08]
[1753201231181,26.44250448,3739.9,3739.8,1e-08]
[1753201231387,56.44250448,3739.9,3739.8,1e-08]
[1753201231704,56.44250448,3739.9,3738.3,0.001]
[1753201231705,3.22444037,3739.1,3738.3,0.001]
[1753201231875,6.22444037,3739.1,3738.4,0.4727]
[1753201232067,10.66444037,3739.1,3738.5,1.0224]
[1753201232397,6.22444037,3739.1,3739.0,0.4737]
[1753201232572,10.66344037,3739.1,3739.0,0.4737]
[1753201232774,6.22444037,3739.1,3739.0,0.4737]
[1753201233014,10.66144037,3739.1,3739.0,0.001]
[1753201233312,6.22444037,3739.1,3739.0,0.001]
[1753201233517,10.65944037,3739.1,3739.0,0.4737]
[1753201234277,10.65944037,3739.1,3739.0,0.001]
[1753201234903,10.65544037,3739.1,3739.0,0.001]
[1753201235069,6.22444037,3739.1,3739.0,0.001]
[1753201235266,10.65444037,3739.1,3739.0,0.001]
[1753201236028,10.65444037,3739.1,3738.6,0.001]
[1753201236029,3.2247265,3738.7,3738.6,0.001]
[1753201236165,7.6527265,3738.7,3738.6,0.001]
[1753201236572,3.2247265,3738.7,3738.6,0.001]
[1753201237300,7.6487265,3738.7,3738.6,0.4737]
[1753201237602,10.6487265,3738.7,3738.6,0.001]
[1753201238504,25.1487265,3738.7,3738.6,0.001]
[1753201238878,3.22494115,3738.4,3738.3,0.001]
[1753201239091,10.67264215,3738.4,3738.3,0.001]
[1753201239295,10.64594115,3738.4,3738.3,0.001]
[1753201239903,6.22494115,3738.4,3738.3,0.001]
[1753201240108,3.0,3738.4,3738.3,0.4737]
[1753201240302,10.09094115,3738.4,3738.3,0.4737]
[1753201240681,5.67494115,3738.4,3738.3,0.4737]
[1753201241309,10.08994115,3738.4,3738.3,0.4737]
[1753201241810,3.0,3738.4,3738.3,1.509]
[1753201242014,2.67452118,3739.0,3738.3,1.66]
[1753201242175,0.026701,3739.2,3738.4,0.4727]
[1753201242375,10.9631007,3739.6,3738.4,0.4727]
[1753201242376,2.6745119,3739.0,3738.4,0.4727]
[1753201242577,1.2684362,3739.9,3738.4,0.4727]
[1753201242578,0.2024362,3739.9,3738.5,1.0353]
[1753201242776,4.411,3739.8,3738.7,2.6746553]
[1753201243004,2.67406179,3739.7,3738.8,1.508]
[1753201243313,0.002,3739.3,3738.9,0.4727]
[1753201244999,0.002,3739.3,3739.0,0.9743]
[1753201245227,0.002,3739.3,3739.0,2.6745067]
[1753201245524,0.002,3739.3,3739.2,2.67436884]
[1753201245892,0.002,3739.3,3739.2,3.14706884]
[1753201246092,0.002,3739.3,3739.2,4.12136884]
[1753201246737,0.002,3739.3,3739.2,1.447]
[1753201247443,0.002,3739.3,3739.2,4.12136884]
[1753201247629,0.002,3739.3,3739.2,4.53618024]
[1753201248008,0.1356,3739.3,3739.2,4.53618024]
[1753201249237,0.002,3739.3,3739.2,4.53618024]
[1753201250042,0.002,3739.3,3739.2,1.8618114]
[1753201250258,0.002,3739.3,3739.2,1.447]
[1753201250612,0.1356,3739.3,3739.2,8.52436884]
[1753201250810,2.67306466,3741.1,3740.3,2.67358152]
[1753201251051,2.67308489,3741.0,3740.4,0.4695]
[1753201251361,2.67309202,3741.0,3740.5,0.9932]
[1753201251557,5.6731637,3740.9,3740.5,0.9932]
[1753201251747,2.67279074,3741.5,3740.6,0.4695]
[1753201251911,2.67303047,3741.1,3740.6,0.4695]
[1753201252232,0.1336,3740.6,3740.5,0.9932]
[1753201252614,0.1336,3740.6,3740.0,3.64419118]
[1753201252836,0.1336,3740.2,3740.1,3.14322306]
[1753201254126,0.1336,3740.2,3740.1,4.13712306]
[1753201254324,2.67279682,3741.4,3740.1,4.13712306]
[1753201254325,2.67282718,3741.4,3740.7,1.0127]
[1753201254526,0.19537198,3741.6,3740.7,1.0127]
[1753201254858,0.19537198,3741.6,3740.8,0.4695]
[1753201254859,2.6727149,3741.6,3740.8,0.4695]
[1753201255147,2.67273282,3741.5,3740.8,0.4695]
[1753201255310,3.0,3741.4,3740.8,0.4695]
[1753201255515,3.0,3741.4,3740.8,3.14266852]
[1753201255720,3.0,3741.5,3740.9,0.4695]
[1753201255955,0.55,3741.6,3740.9,0.4695]
[1753201256150,2.806,3743.4,3740.9,0.4695]
[1753201256151,2.67282256,3741.4,3740.9,0.4695]
[1753201256444,0.1336,3740.9,3740.8,4.402]
[1753201256647,0.1336,3740.9,3740.7,5.4147]
[1753201256849,0.026701,3741.2,3740.7,5.4147]
[1753201256850,3.0,3741.2,3740.7,5.4147]
[1753201257014,0.026701,3741.1,3740.7,1.0127]
[1753201257370,0.026701,3741.1,3740.8,0.4695]
[1753201257526,3.0,3741.4,3740.8,3.14271352]
[1753201257708,3.0,3741.2,3740.8,0.4695]
[1753201258044,2.67301061,3741.1,3740.8,0.4695]
[1753201258247,0.026701,3741.0,3740.8,0.4695]
[1753201258453,3.0,3741.2,3740.9,0.4695]